bitfinex-derivatives/quotes_ETHF0:USTF0_20251126
["timestamp","ask_amount","ask_price","bid_price","bid_amount"]
[1764128962456,0.6049,2935.0,2934.9,0.6289]
[1764128962656,27.2,2935.1,2935.0,0.9897]
[1764128963557,27.8049,2935.1,2935.0,0.9897]
[1764128965053,0.6049,2935.0,2934.9,0.79934]
[1764128966560,27.8049,2935.1,2935.0,1.16013]
[1764128968567,0.6049,2935.1,2935.0,1.16013]
[1764128968769,0.6049,2935.6,2935.5,0.9897]
[1764128969064,0.6049,2935.6,2934.9,1.24277103]
[1764128969065,0.6049,2935.0,2934.9,2.20734]
[1764128969258,0.6049,2935.1,2935.0,0.9897]
[1764128969460,0.3603,2935.5,2935.0,1.16013]
[1764128969660,0.6049,2935.5,2935.4,0.6289]
[1764128971056,0.6049,2935.5,2935.2,0.17042]
[1764128971256,0.6049,2935.5,2935.4,0.6289]
[1764128971669,27.8049,2935.6,2935.5,0.9897]
[1764128971866,0.6049,2935.6,2935.5,0.9897]
[1764128972766,0.6049,2935.6,2935.5,1.1601]
[1764128973561,27.2,2935.9,2935.5,1.1601]
[1764128973756,27.8049,2935.9,2935.8,0.6289]
[1764128973961,0.61001412,2936.1,2936.0,0.6289]
[1764128974169,1e-08,2936.1,2936.0,0.9897]
[1764128974463,0.6049,2935.6,2935.5,2.7497]
[1764128975765,0.6049,2935.6,2935.5,2.9201]
[1764128975966,0.2121,2936.0,2935.5,2.9201]
[1764128976268,0.2121,2936.0,2935.5,5.0421]
[1764128976567,0.2121,2936.0,2935.5,1.1601]
[1764128976868,0.2121,2936.0,2935.6,0.1704]
[1764128977168,0.60490001,2936.1,2936.0,0.9897]
[1764128977464,0.60490001,2936.1,2936.0,0.6289]
[1764128978370,0.60490001,2936.1,2935.7,0.17039]
[1764128980570,0.6049,2935.9,2935.8,1.45630335]
[1764128981370,1e-08,2936.1,2935.8,1.45630335]
[1764128981574,0.6164,2935.9,2935.8,0.82740335]
[1764128982770,0.6164,2935.8,2935.7,0.79539]
[1764128983771,1e-08,2936.1,2935.7,0.79539]
[1764128983971,1e-08,2936.1,2935.8,0.17039]
[1764128985059,1e-08,2936.1,2935.8,0.79539]
[1764128985671,0.61640001,2936.1,2936.0,0.9406]
[1764128985865,0.61640001,2936.1,2936.0,0.625]
[1764128986071,0.9507,2936.0,2935.9,0.17038]
[1764128986271,0.6164,2936.0,2935.9,0.79538]
[1764128987573,0.6164,2936.0,2935.6,4.079]
[1764128987574,0.6164,2934.9,2934.7,2.41673284]
[1764128987773,0.6164,2934.8,2934.7,0.625]
[1764128987982,0.0859,2935.5,2934.7,0.625]
[1764128988174,27.2,2935.4,2934.7,0.625]
[1764128988983,0.6164,2934.6,2934.5,2.71097574]
[1764128989472,0.3343,2935.0,2934.5,2.71097574]
[1764128990278,0.3343,2935.0,2934.5,4.76997574]
[1764128990575,0.6164,2934.6,2934.5,4.76997574]
[1764128990778,0.6164,2934.6,2934.5,0.00337574]
[1764128991071,0.6164,2934.6,2934.5,0.62837574]
[1764128991277,0.6164,2934.6,2934.5,0.94397574]
[1764128991681,0.3343,2935.0,2934.5,0.94397574]
[1764128991979,0.6164,2934.6,2934.5,0.94397574]
[1764128993279,0.3343,2935.0,2934.5,0.94397574]
[1764128993880,27.2,2934.9,2934.5,0.94397574]
[1764128995077,27.8164,2934.9,2934.8,0.625]
[1764128995878,0.6164,2934.9,2934.8,0.625]
[1764128996276,0.6164,2934.6,2934.5,0.94397574]
[1764128998274,0.6164,2934.6,2934.5,0.00337574]
[1764128998475,0.6164,2934.6,2934.5,0.62837574]
[1764128998678,0.6164,2934.6,2934.5,0.94397574]
[1764128999076,28.1507,2935.0,2934.9,0.625]
[1764128999481,0.0859,2935.5,2935.0,0.3156]
[1764128999871,0.6164,2935.1,2935.0,0.9406]
[1764129001072,27.8164,2935.4,2935.3,0.625]
[1764129001277,0.5106,2935.1,2935.0,0.96793]
[1764129001782,0.2891,2935.5,2935.0,0.96793]
[1764129001981,0.5106,2935.5,2935.4,0.4819]
[1764129004979,0.5106,2935.1,2935.0,2.3675]
[1764129007682,0.2891,2935.5,2934.9,0.17044]
[1764129007889,0.5106,2935.0,2934.9,0.65234]
[1764129008076,0.5106,2935.0,2934.9,0.4819]
[1764129008275,0.2891,2935.5,2935.0,0.3177]
[1764129008480,0.5106,2935.1,2935.0,0.7996]
[1764129008984,0.2891,2935.5,2935.0,0.7996]
[1764129009389,0.5106,2935.5,2935.4,0.4819]
[1764129010187,0.5106,2935.5,2935.0,0.3177]
[1764129010391,0.5106,2935.1,2935.0,0.7996]
[1764129010787,0.2891,2935.5,2935.0,0.7996]
[1764129011292,0.5106,2935.1,2934.5,0.31897574]
[1764129011485,0.2891,2935.5,2934.5,0.31897574]
[1764129012382,0.2891,2935.5,2934.6,0.17045]
[1764129013991,0.2891,2935.5,2934.5,1.41797574]
[1764129014890,0.2891,2935.5,2935.0,0.47663]
[1764129015090,0.2891,2935.5,2935.1,0.17043]
[1764129016192,0.4963,2935.2,2935.1,0.65073]
[1764129022096,0.4963,2935.5,2935.4,0.4803]
[1764129023796,0.4963,2934.5,2934.1,4.26299072]
[1764129023992,0.4963,2933.2,2933.1,6.05367924]
[1764129024288,0.4963,2932.8,2932.7,2.41673284]
[1764129024492,0.4963,2932.7,2932.5,4.87113299]
[1764129024699,0.4963,2932.6,2932.5,7.78013299]
[1764129024887,0.50069433,2932.6,2932.5,8.08930284]
[1764129026792,0.00439433,2932.6,2932.5,8.56960284]
[1764129027992,0.4963,2932.4,2930.8,0.17068]
[1764129028196,0.4963,2932.4,2930.5,0.3062]
[1764129028197,0.4963,2931.1,2930.5,0.3062]
[1764129028399,0.4963,2931.1,2930.6,0.64]
[1764129028598,27.4963,2931.1,2931.0,2.45440015]
[1764129029094,27.4963,2931.1,2931.0,2.4585385]
[1764129030699,27.4963,2931.1,2931.0,5.5165385]
[1764129030901,0.4963,2931.1,2931.0,5.5165385]
[1764129031301,27.4963,2931.1,2931.0,5.5165385]
[1764129031602,27.4963,2931.1,2931.0,5.9735385]
[1764129031998,0.4963,2931.1,2931.0,5.9735385]
[1764129032502,27.4963,2931.1,2931.0,5.9735385]
[1764129032800,0.00511412,2931.3,2931.2,0.4803]
[1764129033012,0.00511412,2931.3,2931.2,2.93470015]
[1764129033600,0.00511412,2931.3,2931.2,6.65670015]
[1764129034507,0.50141412,2931.3,2931.2,6.65670015]
[1764129034706,0.50141412,2931.3,2931.2,0.4803]
[1764129035009,0.00511412,2931.3,2931.2,3.45070015]
[1764129036704,0.00511412,2931.3,2931.2,3.62135015]
[1764129037605,0.50141412,2931.3,2931.2,3.62135015]
[1764129037808,0.00511412,2931.3,2931.2,3.62135015]
[1764129040004,0.00511412,2931.3,2931.2,3.10535015]
[1764129040207,0.00511412,2931.3,2931.2,8.06235015]
[1764129040912,27.0,2931.9,2931.8,0.4803]
[1764129041215,1.63670106,2932.4,2932.0,0.3062]
[1764129041413,1.63670106,2932.4,2932.1,2.45440015]
[1764129041606,27.4963,2932.3,2932.2,4.16740015]
[1764129042098,27.4963,2932.3,2932.2,2.45440015]
[1764129042299,27.4963,2932.3,2932.2,3.25140015]
[1764129046108,27.4963,2932.3,2932.2,5.45440015]
[1764129047214,27.4963,2932.3,2932.2,5.86740015]
[1764129048020,0.00511412,2932.5,2932.4,0.4757]
[1764129048316,0.47101412,2932.5,2932.4,3.10068015]
[1764129048509,27.47101412,2932.5,2932.4,2.62498015]
[1764129049010,27.47101412,2932.5,2932.0,0.4039]
[1764129049011,27.87121412,2932.5,2932.0,0.4039]
[1764129049209,0.4659,2932.1,2932.0,0.8796]
[1764129049412,0.4659,2932.1,2932.0,1.0486]
[1764129049606,0.4659,2932.1,2932.0,3.67361015]
[1764129051911,0.4659,2932.1,2932.0,1.21921]
[1764129052110,0.4659,2932.1,2932.0,3.67361015]
[1764129052504,0.4659,2932.1,2932.0,6.59461015]
[1764129052705,0.4659,2932.1,2932.0,3.50461015]
[1764129052912,0.4659,2932.1,2932.0,4.51661015]
[1764129054510,0.4659,2932.1,2932.0,3.50461015]
[1764129054717,0.4659,2932.1,2932.0,7.04261015]
[1764129056011,0.4659,2932.1,2932.0,7.72961015]
[1764129056211,1.3314472,2932.1,2932.0,7.72961015]
[1764129056920,1.3314472,2932.1,2932.0,3.50461015]
[1764129057419,1.3314472,2932.1,2932.0,4.51661015]
[1764129057915,1.3314472,2932.1,2932.0,7.04261015]
[1764129058415,0.8655472,2932.1,2932.0,3.50461015]
[1764129058621,0.8655472,2932.1,2932.0,4.51661015]
[1764129059120,1.3314472,2932.1,2932.0,4.51661015]
[1764129060422,0.8655472,2932.1,2932.0,4.51661015]
[1764129061024,1.3314472,2932.1,2932.0,4.51661015]
[1764129061422,0.4659,2931.6,2931.5,0.4039]
[1764129061617,0.6255,2931.3,2931.2,0.6081]
[1764129061821,0.6255,2931.3,2931.2,1.1201]
[1764129062032,1.5145005,2931.6,2931.5,0.6081]
[1764129062324,2.38055811,2931.6,2931.5,3.42040015]
[1764129064131,2.38055811,2931.6,2931.5,5.95230015]
[1764129064322,2.38055811,2931.6,2931.5,6.09930015]
[1764129065031,2.38055811,2931.6,2931.0,0.31033835]
[1764129065233,1.5145005,2931.6,2931.5,2.45440015]
[1764129065432,0.6255,2931.1,2931.0,0.31033835]
[1764129065633,0.6255,2931.1,2931.0,0.00413835]
[1764129065634,28.49060855,2931.1,2931.0,0.00413835]
[1764129065837,28.49060855,2931.1,2931.0,2.4585385]
[1764129066037,35.37960905,2931.1,2930.8,0.00511412]
[1764129066231,0.6255,2930.9,2930.0,0.58354]
[1764129066530,0.90114554,2930.9,2930.3,2.45951427]
[1764129066735,0.6255,2930.4,2930.3,2.45951427]
[1764129066929,1.25844554,2930.5,2930.0,0.97492]
[1764129067131,1.48972862,2930.4,2930.3,2.45951427]
[1764129069828,1.48972862,2930.4,2930.3,3.06761427]
[1764129070132,0.00761137,2930.5,2930.4,0.6081]
[1764129070327,0.00761137,2930.5,2930.4,3.06761427]
[1764129071042,0.00761137,2930.5,2930.4,4.43261427]
[1764129072638,0.00761137,2930.5,2930.4,6.65261427]
[1764129074135,27.0,2931.1,2931.0,0.9767]
[1764129074440,27.0,2931.1,2931.0,3.43621427]
[1764129074742,27.6257,2931.1,2931.0,3.43621427]
[1764129075235,27.62983692,2931.1,2931.0,3.43621427]
[1764129075441,27.62983692,2931.1,2931.0,3.44041427]
[1764129075747,27.62983692,2931.1,2931.0,2.45951427]
[1764129076130,27.62983692,2931.1,2931.0,3.44041427]
[1764129076445,27.62983692,2931.1,2931.0,2.45951427]
[1764129078941,0.0788,2931.0,2930.3,1.82701]
[1764129079238,27.00413692,2931.1,2930.7,0.6123]
[1764129079442,27.62983692,2931.1,2931.0,3.44041427]
[1764129079642,27.62983692,2931.1,2931.0,2.82811427]
[1764129079839,27.62983692,2931.1,2931.0,3.44041427]
[1764129081643,27.62983692,2931.1,2931.0,2.45951427]
[1764129081847,27.62983692,2931.1,2931.0,2.82811427]
[1764129082233,27.62983692,2931.1,2931.0,2.45951427]
[1764129082438,27.62983692,2931.1,2931.0,3.44041427]
[1764129082843,27.00413692,2931.1,2931.0,3.44041427]
[1764129083039,1.77504636,2931.9,2931.0,3.44041427]
[1764129083040,1.77504636,2931.9,2931.2,3.07181427]
[1764129083247,1.77504636,2931.9,2931.0,0.53927]
[1764129083248,2.40074636,2931.9,2931.8,2.45951427]
[1764129083553,0.6257,2931.8,2931.7,2.45951427]
[1764129083847,0.6257,2931.8,2931.5,0.3686]
[1764129084143,0.6257,2931.8,2931.7,2.45951427]
[1764129084350,0.62901446,2931.8,2931.7,2.45951427]
[1764129084550,27.62901446,2931.8,2931.7,2.45951427]
[1764129086845,27.00331446,2931.8,2931.7,3.07181427]
[1764129090447,27.62901446,2931.8,2931.7,3.07181427]
[1764129091346,27.62901446,2931.8,2931.7,2.45951427]
[1764129092254,27.62901446,2931.8,2931.7,3.07181427]
[1764129092454,0.00511412,2931.9,2931.8,0.6123]
[1764129092650,0.63081412,2931.9,2931.8,3.07181427]
[1764129092852,0.63081412,2931.9,2931.8,2.45951427]
[1764129092853,27.63081412,2931.9,2931.8,2.45951427]
[1764129093547,27.63453882,2931.9,2931.8,2.45951427]
[1764129095861,27.63453882,2931.9,2930.2,0.17071]
[1764129095862,30.01096221,2931.9,2930.2,0.17071]
[1764129096150,0.89784533,2931.7,2930.2,0.17071]
[1764129096358,0.89784533,2931.6,2930.2,0.17071]
[1764129096552,1.7579652,2931.6,2930.2,0.17071]
[1764129096749,0.89784533,2931.4,2930.2,0.17071]
[1764129096950,1.7579652,2931.3,2930.5,0.00511412]
[1764129097151,0.86011987,2931.2,2930.5,0.00511412]
[1764129097454,0.86011987,2931.1,2930.5,0.00511412]
[1764129097658,0.86011987,2931.0,2930.5,0.00511412]
[1764129097959,0.86011987,2930.9,2930.5,0.00511412]
[1764129098152,0.89784533,2931.2,2930.5,0.00511412]
[1764129098352,27.0,2930.8,2930.5,0.00511412]
[1764129099760,0.86027335,2930.7,2930.5,0.00511412]
[1764129099958,0.86027335,2930.6,2930.5,0.00511412]
[1764129100155,0.86027335,2930.6,2930.5,0.37371412]
[1764129101263,27.0,2930.8,2930.5,0.37371412]
[1764129102555,27.0,2930.8,2930.7,0.6123]
[1764129105265,27.0,2930.8,2930.7,1.3553]
[1764129105766,27.0,2930.8,2930.7,3.7783]
[1764129106859,27.0,2930.8,2930.7,0.6123]
[1764129107360,27.0,2930.8,2930.6,3.713]
[1764129107561,27.0,2930.8,2930.5,0.37371412]
[1764129108961,3.76412498,2931.9,2931.7,0.6251]
[1764129108962,0.00883882,2931.9,2931.7,0.6251]
[1764129109160,0.00883882,2931.9,2931.0,0.3635]
[1764129109161,0.5906,2931.1,2931.0,0.3635]
[1764129109358,0.5906,2931.1,2931.0,3.822]
[1764129109966,0.5906,2931.1,2930.6,1.24415819]
[1764129110171,0.5906,2931.1,2930.7,3.684]
[1764129114574,0.5906,2931.1,2931.0,0.6251]
[1764129115064,25.7906,2931.1,2931.0,0.6251]
[1764129115966,0.3384,2931.5,2931.0,0.9886]
[1764129116171,0.5906,2931.5,2931.4,0.6251]
[1764129116368,0.5906,2931.5,2930.5,0.00511412]
[1764129116369,0.5906,2930.6,2930.5,0.00511412]
[1764129116568,0.5906,2930.1,2930.0,0.01310311]
[1764129116773,0.5906,2929.4,2929.3,0.6251]
[1764129117474,25.7906,2929.4,2929.3,0.6251]
[1764129117672,25.79439379,2929.4,2929.3,0.62786496]
[1764129118268,25.20379379,2929.4,2929.3,0.62786496]
[1764129118877,0.00379379,2929.4,2929.3,0.62786496]
[1764129120082,0.3573,2930.5,2929.5,0.9886]
[1764129120274,25.2,2930.4,2929.5,0.9886]
[1764129120474,0.5906,2929.7,2929.6,0.628]
[1764129120781,0.5906,2929.7,2929.6,1.2531]
[1764129120978,0.59365752,2929.7,2929.6,1.2531]
[1764129121172,0.00305752,2929.7,2929.6,4.1521]
[1764129121573,0.00305752,2929.7,2929.6,0.6251]
[1764129121878,0.59365752,2929.7,2929.6,1.7991]
[1764129122078,0.5942,2929.2,2929.1,0.00511412]
[1764129122274,0.00305752,2929.7,2929.1,0.59711412]
[1764129122470,0.00305752,2929.7,2929.6,0.592]
[1764129122676,25.20305752,2929.7,2929.6,0.592]
[1764129123177,25.20305752,2929.7,2929.6,0.59613254]
[1764129123582,0.00305752,2929.7,2929.6,0.59613254]
[1764129123880,0.00511412,2929.9,2929.8,0.592]
[1764129124084,25.20511412,2929.9,2929.8,0.592]
[1764129124581,0.00511412,2929.9,2929.8,0.592]
[1764129124777,0.3384,2931.0,2930.0,0.51122]
[1764129124978,0.89784533,2931.7,2930.9,0.592]
[1764129125180,0.5942,2931.0,2930.7,0.468]
[1764129125375,25.2,2931.4,2930.7,0.468]
[1764129125376,0.5942,2930.8,2930.7,0.468]
[1764129125581,0.5942,2930.8,2930.6,0.96]
[1764129125781,0.5942,2930.7,2930.6,0.96]
[1764129125984,0.5942,2930.7,2930.6,3.292]
[1764129126383,0.5942,2930.7,2930.6,3.884]
[1764129126885,0.5942,2930.6,2930.4,0.00511412]
[1764129127083,0.5942,2930.5,2930.4,0.00511412]
[1764129127283,0.5942,2930.5,2930.4,1.39911412]
[1764129127686,0.00351229,2930.8,2930.7,0.592]
[1764129128086,0.59771229,2930.8,2930.7,3.396]
[1764129128587,0.3384,2931.5,2931.0,0.3405]
[1764129129581,0.34456839,2931.5,2931.0,0.3405]
[1764129130276,25.2,2931.4,2931.0,0.3405]
[1764129131287,25.2,2931.4,2931.3,0.592]
[1764129131490,0.00616839,2931.5,2931.4,0.592]
[1764129131986,0.564,2930.1,2930.0,2.41354658]
[1764129132186,25.53886839,2931.5,2930.0,3.3757]
[1764129132391,25.53886839,2931.5,2930.7,0.17068]
[1764129132983,25.53886839,2931.5,2930.8,0.00511412]
[1764129133591,25.20616839,2931.5,2930.8,0.17578412]
[1764129133785,25.20616839,2931.5,2931.0,0.3467]
[1764129134087,25.20616839,2931.5,2931.4,0.5823]
[1764129136690,0.564,2930.9,2929.5,3.02415401]
[1764129136890,0.564,2930.9,2929.6,0.00413254]
[1764129137190,0.85696275,2930.8,2929.6,0.00413254]
[1764129137399,0.1663,2931.0,2929.6,0.00413254]
[1764129137591,0.85575039,2930.9,2929.6,0.00413254]
[1764129137793,0.85575039,2930.8,2930.0,0.00511412]
[1764129137992,0.564,2930.1,2930.0,0.00511412]
[1764129139789,25.764,2930.1,2930.0,0.00511412]
[1764129140195,0.1663,2931.0,2930.0,0.93411412]
[1764129140693,25.2,2930.9,2930.0,1.42211412]
[1764129141993,0.1663,2929.5,2929.1,2.44258574]
[1764129142295,0.564,2929.1,2928.0,0.51753]
[1764129142896,0.1429,2929.0,2928.1,1.163]
[1764129143086,0.00511412,2928.8,2928.3,0.00511412]
[1764129144195,0.00511412,2928.8,2928.4,3.018]
[1764129145901,0.00511412,2928.8,2928.4,3.347]
[1764129146095,0.00511412,2928.8,2928.3,0.00511412]
[1764129146302,25.2,2928.7,2928.3,0.00511412]
[1764129147396,0.00511412,2928.8,2928.6,0.5823]
[1764129147597,2.30896582,2930.1,2928.5,0.3467]
[1764129147598,0.89784533,2930.5,2930.4,0.5823]
[1764129147801,3.33718838,2931.5,2930.5,0.3467]
[1764129147802,0.3327,2931.5,2930.5,0.3467]
[1764129147996,0.89784533,2932.2,2930.5,0.3467]
[1764129148197,2.93552806,2932.5,2930.7,0.17068]
[1764129148391,0.3327,2932.5,2931.0,0.3467]
[1764129148592,0.00511412,2931.6,2931.5,0.5823]
[1764129149204,0.0037242,2932.0,2931.5,0.5823]
[1764129149501,13.96336726,2932.9,2931.6,0.3467]
[1764129150305,0.00511412,2932.5,2931.6,0.51733]
[1764129150507,0.00803815,2932.5,2931.7,0.17062]
[1764129150806,0.00803815,2932.5,2931.8,0.17061]
[1764129151206,0.00803815,2932.5,2931.9,0.603]
[1764129152409,0.00803815,2932.5,2931.9,2.929]
[1764129153706,0.00803815,2932.5,2931.9,3.366]
[1764129156209,0.00803815,2932.5,2931.9,3.443]
[1764129157308,0.00803815,2932.5,2932.0,0.3467]
[1764129158913,0.00803815,2932.5,2932.0,0.51731]
[1764129162416,0.00803815,2932.5,2932.4,0.75288]
[1764129162609,0.3327,2933.5,2932.8,0.17056]
[1764129162805,0.3327,2934.0,2933.0,0.5079]
[1764129163005,0.3141,2934.5,2933.3,0.17053]
[1764129163414,0.561,2933.4,2933.3,0.17053]
[1764129163716,0.5644078,2933.4,2933.3,0.17432613]
[1764129164508,0.0034078,2933.4,2933.3,0.17432613]
[1764129164708,0.0034078,2933.4,2933.3,0.75092613]
[1764129166913,0.00340948,2933.6,2933.3,0.75092613]
[1764129167819,0.00634808,2933.6,2933.5,0.5766]
[1764129168021,0.56734808,2933.6,2933.3,0.17432613]
[1764129168319,0.00634808,2933.6,2933.5,0.5766]
[1764129170722,0.00634808,2933.6,2933.5,1.0845]
[1764129173520,0.56734808,2933.6,2933.3,0.17432613]
[1764129174010,0.56734808,2933.6,2933.5,0.5766]
[1764129174412,0.5137,2935.0,2933.8,0.1705]
[1764129174706,0.5137,2935.0,2933.5,7.91902049]
[1764129174707,0.5137,2935.0,2933.5,1.75021929]
[1764129174911,0.5137,2935.0,2933.7,1.588]
[1764129175108,0.5137,2935.0,2933.5,1.75021929]
[1764129175317,0.5137,2935.0,2933.5,2.46721929]
[1764129175511,0.5172457,2935.0,2933.5,2.46721929]
[1764129175912,0.5172457,2935.0,2933.5,2.33121929]
[1764129176310,0.85323156,2934.9,2933.5,2.33121929]
[1764129176522,0.5172457,2935.0,2933.5,2.33121929]
[1764129176823,0.85322331,2934.9,2933.5,2.33121929]
[1764129177122,0.5172457,2935.0,2933.5,1.75021929]
[1764129177423,0.89113518,2934.7,2933.5,0.5079]
[1764129177624,1.74670635,2934.7,2933.5,0.5079]
[1764129177924,0.2764,2934.5,2933.5,0.5079]
[1764129178122,0.85557117,2934.4,2933.5,0.5079]
[1764129178318,0.2764,2934.5,2933.5,0.5079]
[1764129178518,0.85575217,2934.4,2933.5,0.5079]
[1764129178724,0.2764,2934.5,2933.5,0.5079]
[1764129178917,0.85575256,2934.4,2933.5,0.5079]
[1764129179113,0.2764,2934.5,2933.5,0.5079]
[1764129179327,0.85602782,2934.4,2933.5,1.75021929]
[1764129179517,0.85602782,2934.3,2933.5,1.75021929]
[1764129179721,0.2764,2934.5,2933.5,1.75021929]
[1764129179924,0.85600691,2934.4,2933.5,1.75021929]
[1764129180121,0.85600691,2934.3,2933.5,1.75021929]
[1764129180321,0.2764,2934.5,2933.5,1.75021929]
[1764129180628,0.85607396,2934.4,2933.5,0.5079]
[1764129180926,0.85607396,2934.3,2933.5,0.5079]
[1764129181129,0.2764,2934.5,2933.5,0.5079]
[1764129181322,0.85606649,2934.4,2933.5,0.5079]
[1764129181519,0.85606649,2934.3,2933.5,0.5079]
[1764129181714,0.85602534,2934.2,2933.5,0.5079]
[1764129181921,1.16753518,2934.5,2933.5,0.5079]
[1764129182127,0.85602858,2934.4,2933.5,0.5079]
[1764129182314,0.85602858,2934.3,2933.5,0.5079]
[1764129182519,0.85602858,2934.2,2933.5,0.5079]
[1764129182721,1.72703518,2934.8,2934.5,0.488]
[1764129183027,0.515,2934.5,2933.3,0.00379613]
[1764129183226,1.41513294,2934.5,2933.3,0.00379613]
[1764129183528,0.85619415,2934.4,2933.3,0.00379613]
[1764129184316,1.75632709,2934.4,2933.3,0.00379613]
[1764129184521,1.75632709,2934.3,2933.3,0.00379613]
[1764129184721,1.75632709,2934.2,2933.3,0.00379613]
[1764129184928,0.515,2934.0,2933.3,0.00379613]
[1764129185122,0.85619415,2933.9,2933.3,0.00379613]
[1764129186725,0.85619415,2933.9,2933.8,0.8135]
[1764129186920,0.90013294,2934.2,2933.8,0.8135]
[1764129187524,1.75632709,2934.2,2933.8,0.8135]
[1764129187726,0.85619415,2934.1,2933.8,0.8135]
[1764129188031,0.85619415,2934.0,2933.8,0.8135]
[1764129188334,0.85619415,2933.9,2933.8,0.8135]
[1764129188526,1.75632709,2934.2,2933.8,0.8135]
[1764129188834,1.75632709,2934.1,2933.8,0.8135]
[1764129189037,0.85619415,2934.0,2933.8,0.8135]
[1764129189329,0.85619415,2933.9,2933.8,0.8135]
[1764129189631,0.90013294,2934.1,2933.8,0.8135]
[1764129189932,1.75632709,2934.1,2933.8,0.8135]
[1764129190229,1.75632709,2934.0,2933.8,0.8135]
[1764129190532,0.90013294,2934.0,2933.9,0.8135]
[1764129190720,0.90013294,2934.1,2934.0,0.8135]
[1764129190922,0.85875067,2934.1,2934.0,1.3015]
[1764129192128,0.90013294,2934.4,2934.3,0.8135]
[1764129192330,0.90013294,2934.5,2934.4,0.8565]
[1764129192829,0.8414,2934.1,2934.0,0.488]
[1764129193023,0.8414,2934.1,2934.0,0.8565]
[1764129193428,0.90480104,2934.4,2934.0,1.3396]
[1764129194329,0.90480104,2934.4,2934.3,0.8565]
[1764129194730,1.74620104,2934.4,2934.3,0.8565]
[1764129195134,1.74620104,2934.4,2934.0,0.4831]
[1764129195335,0.90480104,2934.3,2934.0,0.4831]
[1764129195831,0.90480104,2934.3,2934.2,0.8565]
[1764129196334,0.90480104,2934.4,2934.3,0.8565]
[1764129196532,0.8414,2934.1,2933.6,0.17051]
[1764129196835,0.90481223,2934.3,2934.0,1.3396]
[1764129198432,0.90481223,2934.4,2934.2,0.8565]
[1764129198835,0.90481223,2934.4,2933.4,2.24831929]
[1764129198836,0.2915,2934.0,2931.3,0.28508302]
[1764129199132,0.2915,2934.0,2930.5,0.4831]
[1764129199133,1.24231929,2931.4,2930.5,0.4831]
[1764129199327,2.39779276,2930.8,2930.5,0.4831]
[1764129199532,1.1990235,2930.6,2930.5,0.4831]
[1764129199732,1.80362448,2930.8,2930.6,5.11360001]
[1764129199924,1.19886775,2930.7,2930.5,0.48668635]
[1764129200127,1.19886775,2930.7,2930.6,5.11360001]
[1764129200328,0.90525439,2930.8,2930.6,5.11360001]
[1764129200627,0.90525439,2930.8,2930.7,5.11360001]
[1764129200828,0.90525439,2930.8,2930.6,5.11360001]
[1764129201325,0.90525439,2930.8,2930.5,0.48668635]
[1764129201326,0.0080992,2930.8,2930.7,5.11360001]
[1764129201526,0.0080992,2930.8,2930.6,5.11360001]
[1764129202034,0.0080992,2930.8,2930.7,5.11360001]
[1764129202235,0.0080992,2930.8,2930.5,0.48668635]
[1764129202236,0.0080992,2930.8,2930.6,5.11360001]
[1764129202729,0.0080992,2930.8,2930.7,5.11360001]
[1764129202936,0.0080992,2930.8,2930.6,5.11360001]
[1764129203324,0.0080992,2930.8,2930.7,5.11360001]
[1764129208635,0.89564583,2931.9,2930.7,5.97010001]
[1764129208838,0.94272296,2931.8,2930.8,5.11360001]
[1764129209132,1.06624583,2932.1,2930.6,5.11360001]
[1764129209342,0.94255223,2932.0,2930.6,5.11360001]
[1764129209534,0.94255223,2931.9,2930.7,5.11360001]
[1764129209737,0.94255223,2931.8,2930.6,5.11360001]
[1764129210035,0.00242867,2931.9,2930.7,5.11360001]
[1764129210231,0.94244014,2931.8,2930.7,5.11360001]
[1764129210436,0.00242867,2931.9,2930.8,5.11360001]
[1764129210637,0.00242867,2931.9,2930.7,5.11360001]
[1764129211036,0.00242867,2931.9,2930.8,5.11360001]
[1764129211233,0.00242867,2931.9,2930.7,5.11360001]
[1764129211732,0.00242867,2931.9,2930.8,5.11360001]
[1764129211938,0.00242867,2931.9,2930.7,5.11360001]
[1764129212340,0.00242867,2931.9,2931.0,0.4831]
[1764129212843,0.00242867,2931.9,2931.5,0.4831]
[1764129213840,0.00242867,2931.9,2931.5,5.59670001]
[1764129214033,0.00242867,2931.9,2931.8,5.97010001]
[1764129216640,7.24474796,2931.9,2931.0,0.4831]
[1764129216936,0.94251434,2931.8,2931.0,0.4831]
[1764129217144,0.94251434,2931.7,2931.0,0.4831]
[1764129217334,1.41536796,2931.9,2931.0,0.4831]
[1764129217534,0.94268259,2931.8,2931.0,0.4831]
[1764129217739,0.94268259,2931.7,2931.0,0.4831]
[1764129217940,1.41536796,2931.9,2931.0,0.4831]
[1764129218142,0.94267449,2931.8,2931.0,0.4831]
[1764129218338,0.94267449,2931.7,2931.0,0.4831]
[1764129218547,0.94267449,2931.6,2931.0,0.4831]
[1764129218743,2.31101379,2931.9,2931.0,0.4831]
[1764129218944,0.94287802,2931.8,2931.0,0.4831]
[1764129219146,0.94287802,2931.7,2931.0,0.4831]
[1764129219345,0.94287802,2931.6,2931.0,0.4831]
[1764129219647,2.31101379,2931.9,2931.0,0.4831]
[1764129219847,0.94319801,2931.8,2931.0,0.4831]
[1764129220045,0.94319801,2931.7,2931.0,0.4831]
[1764129220246,0.94319801,2931.6,2931.0,0.4831]
[1764129220445,0.94319801,2931.5,2931.0,5.59670001]
[1764129220642,1.06626583,2931.8,2931.0,5.59670001]
[1764129220842,0.94365329,2931.7,2931.0,5.59670001]
[1764129221039,0.94365329,2931.6,2931.5,0.4831]
[1764129221243,1.83929912,2931.7,2931.5,0.4831]
[1764129221548,0.94365329,2931.6,2931.5,0.4831]
[1764129222447,1.83929912,2931.6,2931.5,0.4831]
[1764129223246,0.94365329,2931.6,2931.5,0.4831]
[1764129225449,2.74216366,2931.6,2931.5,0.4831]
[1764129226345,0.94365329,2931.6,2931.5,0.4831]
[1764129226951,0.94365329,2931.6,2931.5,5.59670001]
[1764129227545,0.94365329,2931.6,2931.5,4.36281457]
[1764129228254,0.94365329,2931.6,2931.5,2.4127679]
[1764129230945,0.94365329,2931.6,2931.5,1.5974679]
[1764129234261,0.94365329,2931.6,2931.5,2.4127679]
[1764129239363,2.75491682,2931.6,2931.5,2.4127679]
[1764129239856,0.94365329,2931.6,2931.5,2.4127679]